Cogmind - Beta 16.1 @@@ ROGUE MODE // 2026.03.18 @ 09:35:25 Player: ash Result: Destroyed by 3I-54W(x) with Makeshift Spear Performance ------------- Evolutions (0) 0 Regions Visited (3) 600 Robots Destroyed (16) 80 Value Destroyed (371) 371 Prototype IDs (7) 140 Alien Tech Used (0) 0 Bonus (800) 800 TOTAL SCORE: 1991 Bonus ------- Registered with UFD 300 Met Optimus in HQ 500 Cogmind --------- Core Integrity 0/250 Matter 300/300 Energy 43/100 System Corruption 0% Temperature Cool (18) Movement Core (750) Ox14 Location -7/Scraptown Parts ------- > --- POWER (1) -------- (None) > --- PROPULSION (2) --- (None) > --- UTILITY (2) ------ High-capacity Storage Unit Improved Shield Generator > --- WEAPON (2) ------- (None) > --- INVENTORY (20) --- Deuterium Engine Light Nuclear Core Scrap Suit Large Matter Pod (150) Light Armor Plating Field Laser Heavy Laser Plasma Rifle Barrage Gun Flak Cannon Gauss Cannon Improved Grenade Launcher Powered Hammer DRS Beacon (Ready) Peak State ------------ > --- POWER ------------ Improved Ion Engine > --- PROPULSION ------- Light Treads Advanced Treads > --- UTILITY ---------- High-capacity Storage Unit Improved Shield Generator > --- WEAPON ----------- Junk Cannon > --- INVENTORY -------- Deuterium Engine Light Nuclear Core Light Treads Light Treads Scrap Suit Large Matter Pod Light Armor Plating Field Laser Heavy Laser Plasma Rifle Barrage Gun Flak Cannon Gauss Cannon Improved Grenade Launcher Powered Hammer DRS Beacon [Rating: 28] Favorites ----------- Power Light Ion Engine Engine Light Ion Engine Propulsion Light Treads Treads Light Treads Leg Aluminum Leg Utility Structural Scanner Device Structural Scanner Storage High-capacity Storage Unit Weapon Light Cannon Energy Gun EM Pulse Gun Ballistic Gun Light Assault Rifle Ballistic Cannon Light Cannon Special Weapon Junk Cannon Build | -11 -10 -10 -7 ------- Run | Yrd Mat Sub Scr Slots Evolved . | . . . . Power . | . . . . Propulsion . | . . . . Utility . | . . . . Weapon . | . . . . Parts Attached 22 | . 13 1 8 Power 3 | . 2 . 1 Engine 3 | . 2 . 1 Core . | . . . . Reactor . | . . . . Propulsion 6 | . 3 . 3 Treads 5 | . 2 . 3 Leg 1 | . 1 . . Wheel . | . . . . Hover . | . . . . Flight . | . . . . Utility 6 | . 4 . 2 Device 2 | . 1 . 1 Storage 4 | . 3 . 1 Processor . | . . . . Hackware . | . . . . Protection . | . . . . Artifact . | . . . . Weapon 7 | . 4 1 2 Energy Gun 2 | . 2 . . Energy Cannon . | . . . . Ballistic Gun 1 | . 1 . . Ballistic Cannon 3 | . 1 1 1 Launcher . | . . . . Special Weapon 1 | . . . 1 Impact Weapon . | . . . . Slashing Weapon . | . . . . Piercing Weapon . | . . . . Special Melee Weapon . | . . . . Unidentified Prototypes 1 | . . . 1 Parts Lost 11 | . 4 . 7 Power 3 | . 2 . 1 Propulsion 4 | . . . 4 Utility 1 | . . . 1 Weapon 3 | . 2 . 1 Highest Loss Streak 7 | . 1 . 7 To Critical Strikes . | . . . . Average Backups 14 | . 9 13 16 Power 1 | . . 2 2 Propulsion 2 | . 3 3 2 Utility 3 | . . 2 4 Weapon 6 | . 3 6 7 Tool/Special . | . . . . Unused Backups 28 | . 6 . 22 Power 4 | . 1 . 3 Propulsion 5 | . 4 . 1 Utility 7 | . 1 . 6 Weapon 12 | . . . 12 Tool/Special . | . . . . Average Slot Usage (%) 96 | . 97 100 96 Engine 13 | . 13 14 13 Treads 26 | . 20 28 27 Leg 1 | . 7 . . Device 13 | . 12 14 14 Storage 14 | . 14 14 14 Energy Gun 2 | . 9 . . Ballistic Gun 3 | . 13 4 . Ballistic Cannon 16 | . 4 23 20 Special Weapon 2 | . . . 3 Peak Build Rating 28 | . 8 8 28 Average Rating 14 | . 7 8 16 On Entrance 7 | 6 6 8 8 Avg Prop Armor Cover (%) . | . . . . Naked Turns . | . . . . Heaviest Build 65 | 11 28 30 65 Greatest Support 42 | 20 40 40 42 Greatest Overweight (x) 2 | . . . 2 Average Overweight (x) . | . . . . Largest Inventory Capacity 25 | . 25 15 20 Average Capacity 15 | . 9 15 18 Most Carried 20 | . 12 14 20 Average Carried 14 | . 9 13 16 Final Capacity 20 | 8 15 15 20 Final Carried 15 | 6 12 14 15 Class Distribution -------------------- 100% | Mutant Dominant Class ---------------- Mutant | -10/Materials Mutant | -10/Subcaves Mutant | -7/Scraptown Resources | -11 -10 -10 -7 ----------- Run | Yrd Mat Sub Scr Matter Collected 692 | 187 395 24 86 Remotely . | . . . . Salvage Created 459 | . 435 24 . Parts 31 | . 29 2 . Haulers Intercepted 2 | . 2 . . Recyclers Shooed . | . . . . Parts Field Recycled . | . . . . Retrieved Matter . | . . . . Parts Self-Destructed . | . . . . Prevented . | . . . . Parts Restored . | . . . . Kills | -11 -10 -10 -7 ------- Run | Yrd Mat Sub Scr Combat Hostiles Destroyed 11 | . 10 1 . Guns 6 | . 6 . . Cannons 3 | . 2 1 . AOE 2 | . 2 . . Classes Destroyed 7 | . 6 1 . Worker 1 | . 1 . . Hauler 2 | . 2 . . Operator 1 | . 1 . . Watcher 1 | . 1 . . Swarmer 3 | . 3 . . Grunt 7 | . 7 . . Subdweller 1 | . . 1 . Best Kill Streak 3 | . 3 1 . Combat Bots Only 3 | . 3 1 . Max Kills in Single Turn 2 | . 2 1 . Gunslinging . | . . . . Exploded 2 | . 2 . . Melee . | . . . . Uniques/NPCs Destroyed . | . . . . Combat | -11 -10 -10 -7 -------- Run | Yrd Mat Sub Scr Hostile Shots Fired 198 | . 70 7 121 Missed 53 | . 24 1 28 Hits 145 | . 46 6 93 Melee 33 | . . . 33 Projectile 112 | . 46 6 60 Critical Strikes 1 | . . . 1 Damage Taken 1683 | . 594 135 954 Core 256 | . 92 . 164 Absorbed by Shields 82 | . . . 82 Core Remaining (%) 100 | 100 . . . Volleys Fired 65 | . 59 5 1 Largest 2 | . 2 2 1 Hottest 60 | . 60 60 . Shots Fired 129 | . 118 10 1 Gun 104 | . 104 . . Cannon 24 | . 14 10 . Launcher . | . . . . Special 1 | . . . 1 Kinetic 83 | . 73 10 . Thermal 33 | . 33 . . Explosive . | . . . . Electromagnetic 12 | . 12 . . Impact 1 | . . . 1 Robot Hit Streak 15 | . 15 9 . Robot Miss Streak 3 | . 3 1 1 Penetration Max . | . . . . Secondary Targets . | . . . . Shots Hit Robots 89 | . 81 8 . Core Hits 32 | . 30 2 . Critical Kills . | . . . . Critical Parts Destroyed . | . . . . Critical Strikes 1 | . 1 . . Blast 1 | . 1 . . Melee Attacks . | . . . . Impact . | . . . . Slashing . | . . . . Piercing . | . . . . Sneak Attacks . | . . . . Combat Hostiles . | . . . . Follow-up Attacks . | . . . . Damage Inflicted 1069 | . 935 134 . Guns 633 | . 633 . . Cannons 349 | . 215 134 . Explosions 83 | . 83 . . Melee . | . . . . Ramming 4 | . 4 . . Kinetic 675 | . 541 134 . Thermal 307 | . 307 . . Explosive . | . . . . Electromagnetic 83 | . 83 . . Impact . | . . . . Slashing . | . . . . Piercing . | . . . . Highest Corruption . | . . . . Average Corruption . | . . . . Corruption Purged . | . . . . Corruption Blocked . | . . . . Overload Shots . | . . . . Overflow Damage . | . . . . Projectiles . | . . . . Explosions . | . . . . Melee . | . . . . Knockbacks 4 | . 3 1 . Impact . | . . . . Kinetic 4 | . 3 1 . Secondary . | . . . . Self-Inflicted Damage 30 | . 30 . . Shots 1 | . 1 . . Rammed . | . . . . Targets Rammed 2 | . 2 . . Kicked 1 | . 1 . . Crushed 1 | . 1 . . Highest Temperature 171 | . 171 . 23 Average Temperature 45 | . 47 . 14 Received Heat Transfer 654 | . 282 . 372 Siege Activations . | . . . . Martial Activations . | . . . . Shielding Activations . | . . . . Robots Disrupted . | . . . . Combat Hostiles . | . . . . Robots Corrupted . | . . . . Combat Hostiles . | . . . . Parts Fried . | . . . . Impact Corruptions . | . . . . Robots Melted . | . . . . Combat Hostiles . | . . . . Parts Melted 1 | . 1 . . Heat Transferred 550 | . 550 . . Parts Sabotaged . | . . . . Parts Stolen . | . . . . Parts Stripped . | . . . . Power Chain Reactions 1 | . 1 . . Alert | -11 -10 -10 -7 ------- Run | Yrd Mat Sub Scr Maximum Alert Level . | . . . . Low Security (%) 100 | . 100 . . Level 1 . | . . . . Level 2 . | . . . . Level 3 . | . . . . Level 4 . | . . . . Level 5 . | . . . . High Security . | . . . . Max Security . | . . . . Peak Influence 75 | . 75 . . Initial . | . . . . Average 26 | . 26 . . Influence Increases 322 | . 322 . . Destroy 0b10 Robot/C 200 | . 200 . . Destroy 0b10 Robot/NC 25 | . 25 . . Destroy Leader 56 | . 56 . . Successful Hack 21 | . 21 . . Destroy Structure 5 | . 5 . . Lose Combat Pursuer 15 | . 15 . . Influence Decreases 322 | . 314 8 . Entered New Map 4 | . . 4 . Time Decay 298 | . 294 4 . Lost Part 20 | . 20 . . Squads Dispatched 3 | . 3 . . Investigation 1 | . 1 . . Extermination . | . . . . Reinforcement 2 | . 2 . . Assault . | . . . . Garrison . | . . . . Intercept . | . . . . Searches Triggered . | . . . . Construction Impeded . | . . . . Haulers Reinforced . | . . . . Active Scanning Responses . | . . . . Cargo Convoy Interrupts . | . . . . Stealth | -11 -10 -10 -7 --------- Run | Yrd Mat Sub Scr Distress Signals 3 | . 3 . . Communications Jammed . | . . . . Distress Signals . | . . . . Times Spotted 35 | . 22 1 12 Peak Tracking Total 9 | . 4 1 9 Tactical Retreats 1 | . 1 . . Traps | -11 -10 -10 -7 ------- Run | Yrd Mat Sub Scr Traps Triggered 1 | . 1 . . Indirectly . | . . . . Trap Hack Attempts . | . . . . Triggered . | . . . . Disarmed . | . . . . Reprogrammed . | . . . . Reused . | . . . . Traps Extracted . | . . . . Installed . | . . . . Triggered . | . . . . Machines | -11 -10 -10 -7 ---------- Run | Yrd Mat Sub Scr Machines Disabled . | . . . . Max in Single Turn . | . . . . Machines Repaired . | . . . . Machines Dismantled . | . . . . Machines Sabotaged . | . . . . Overloaded Fab Kills . | . . . . Hacking | -11 -10 -10 -7 --------- Run | Yrd Mat Sub Scr Machines Accessed 15 | . 6 . 9 Terminals 6 | . 6 . . Fabricators . | . . . . Repair Stations . | . . . . Recycling Units . | . . . . Scanalyzers . | . . . . Garrison Access . | . . . . Total Hacks 76 | . 15 . 61 Successful 67 | . 6 . 61 Failed 9 | . 9 . . Catastrophic 1 | . 1 . . Database Lockouts . | . . . . Manual 3 | . 3 . . Terminals 15 | . 15 . . Fabricators . | . . . . Repair Stations . | . . . . Recycling Units . | . . . . Scanalyzers . | . . . . Garrison Access . | . . . . Terminal Hacks 65 | . 4 . 61 Record 61 | . 1 . 60 Open Door 1 | . . . 1 Level Access Points 1 | . 1 . . Alert Level 1 | . 1 . . Dispatch Records 1 | . 1 . . Fabricator Hacks . | . . . . Repair Station Hacks . | . . . . Recycling Unit Hacks . | . . . . Scanalyzer . | . . . . Garrison Access Hacks . | . . . . Unauthorized Hacks 2 | . 2 . . Terminals 2 | . 2 . . Botnet 2 | . 2 . . Fabricators . | . . . . Repair Stations . | . . . . Recycling Units . | . . . . Scanalyzers . | . . . . Garrison Access . | . . . . Data Cores Recovered . | . . . . Used . | . . . . Hacking Detections 6 | . 6 . . Full Trace Events 1 | . 1 . . Feedback Events . | . . . . Feedback Blocked . | . . . . Robot Schematics Acquired . | . . . . Robots Built . | . . . . Authchips . | . . . . Time . | . . . . Total Robot Build Rating . | . . . . Part Schematics Acquired . | . . . . Parts Built . | . . . . Authchips . | . . . . Time . | . . . . Total Part Build Rating . | . . . . Part Studies Acquired . | . . . . Parts Repaired . | . . . . Time . | . . . . Parts Recycled . | . . . . Recycled Matter . | . . . . Retrieved Matter . | . . . . Retrieved Components . | . . . . Parts Scanalyzed . | . . . . Part Schematics Acquired . | . . . . Parts Damaged . | . . . . Bothacking | -11 -10 -10 -7 ------------ Run | Yrd Mat Sub Scr Used RIF Installer . | . . . . Robots Hacked . | . . . . Non-combat . | . . . . Combat . | . . . . Robot Hacks Applied . | . . . . Relay Couplers Released . | . . . . Fabnet Peak Effective % . | . . . . Robots Rewired . | . . . . Allies Hacked . | . . . . Hacks Repelled . | . . . . Allies | -11 -10 -10 -7 -------- Run | Yrd Mat Sub Scr Total Allies . | . . . . Largest Group . | . . . . Highest-Rated Group . | . . . . Highest-Rated Ally . | . . . . Total Orders . | . . . . Ally Attacks . | . . . . Total Damage . | . . . . Kills . | . . . . Allies Corrupted . | . . . . Allies Melted 2 | . . . 2 Intel | -11 -10 -10 -7 ------- Run | Yrd Mat Sub Scr Active Infowar (turns) 3957 | . 946 157 2854 Structural 3957 | . 946 157 2854 Robot Analysis Total . | . . . . Derelict Logs Recovered 2 | . . 1 1 Drone Launches . | . . . . Drone Recoveries . | . . . . Exploration | -11 -10 -10 -7 ------------- Run | Yrd Mat Sub Scr Turns Passed 4133 | . 1093 157 2883 Spaces Moved 2072 | 1 567 79 1425 Core . | . . . . Treads 1944 | . 440 79 1425 Legs 128 | 1 127 . . Wheels . | . . . . Hover . | . . . . Flight . | . . . . Fastest Speed 120 | 120 120 160 152 Average Speed 184 | 120 151 160 199 Slowest Speed 320 | 120 160 160 320 Overloaded Moves . | . . . . Propulsion Burnouts . | . . . . Robots Hopped . | . . . . Potential Cave-ins . | . . . . Cave-ins Triggered . | . . . . Exploration Rate (%) 48 | 2 93 9 89 Regions Visited 3 Branch Regions 2 Pre-discovered Areas 1 | . . . 1 Known Exits Taken . | . . . . Unknown Exits Taken 3 | 1 1 1 . Scrap Searched 4 | . . . 4 Spaces Dug . | . . . . Terrain Destroyed 4 | . 3 . 1 Melee . | . . . . Projectile 1 | . . . 1 AOE 3 | . 3 . . Terrain Rammed . | . . . . Walls Destroyed . | . . . . Machines Disabled . | . . . . Actions | -11 -10 -10 -7 --------- Run | Yrd Mat Sub Scr Total 2270 | . 696 99 1475 Wait 52 | . 31 13 8 Move 2069 | . 566 78 1425 Hop . | . . . . Pick Up 32 | . 15 2 15 Fast Attach 4 | . 4 . . Attach 7 | . 3 . 4 Detach 1 | . . . 1 Swap 12 | . 7 1 4 Drop 26 | . 9 . 17 Fire 65 | . 59 5 1 Melee . | . . . . Ram . | . . . . Kick 1 | . 1 . . Crush 1 | . 1 . . Escape Stasis . | . . . . Rewire . | . . . . Trap . | . . . . Miscellaneous . | . . . . Route ------- -11/Scrapyard -10/Materials (discovered 6 exits: *Mat x3 / [*Min x2] / [*Sub]) -10/Subcaves (discovered 2 exits: Rec / *Scr) -7/Scraptown (discovered 2 exits: [*Fac x2]) History --------- Turn | Location | Event 1 | -11/Scrapyard | Discovered new exit (range 0) 1 | -11/Scrapyard | Entered Materials 54 | -10/Materials | Discovered new exit (range 10) 79 | -10/Materials | Discovered new exit (range 14) 330 | -10/Materials | Discovered new exit (range 14) 338 | -10/Materials | Build established: Mutant 411 | -10/Materials | Identified exit to Materials 701 | -10/Materials | Derelicts attacked the area 1078 | -10/Materials | Discovered new exit (range 10) 1094 | -10/Materials | Entered Subcaves 1095 | -10/Subcaves | Approached by a straggling Scientist 1106 | -10/Subcaves | Identified exit to Recycling 1251 | -10/Subcaves | Entered Scraptown 1674 | -7/Scraptown | Discovered new exit (range 11) 1731 | -7/Scraptown | Scanned Subdweller tech in exchange for log data 1736 | -7/Scraptown | Learned location of Warlord (-4) 1783 | -7/Scraptown | Visited Shadow of the Wyrm 1815 | -7/Scraptown | Heard Great Nut preacher, LISTEN AND RECITE! 1821 | -7/Scraptown | Visited Awakened 1859 | -7/Scraptown | Visited Assassins FH 1962 | -7/Scraptown | Visited Spacefarers 2045 | -7/Scraptown | Visited Cave Peace 2112 | -7/Scraptown | Visited Symbiants 2461 | -7/Scraptown | Visited UFD Registry 2517 | -7/Scraptown | Visited Cyclists 2614 | -7/Scraptown | Registered with UFD as "Gunhacker" 2702 | -7/Scraptown | Visited Scrapoid Research Area 2751 | -7/Scraptown | Visited Botcube Research 2816 | -7/Scraptown | Visited Scrap Suit Storage 2841 | -7/Scraptown | Found Scrap Suit 3091 | -7/Scraptown | Discovered new exit (range 5) 3174 | -7/Scraptown | Visited Chapter 10 3237 | -7/Scraptown | Visited Science Testing Area 3292 | -7/Scraptown | Visited Derelict Rescue Squad 3309 | -7/Scraptown | Found DRS Beacon 3375 | -7/Scraptown | Visited Junk Cannon Lab 3392 | -7/Scraptown | Found Prototype Special Weapon 3401 | -7/Scraptown | Identified Junk Cannon 3460 | -7/Scraptown | Visited Sword Containment 3528 | -7/Scraptown | Visited Junk Repository 3654 | -7/Scraptown | Visited Infowarlord's Domain 3828 | -7/Scraptown | Met Optimus 3828 | -7/Scraptown | Accepted into 0bPrime 4003 | -7/Scraptown | Civil war broke out across Scraptown 4121 | -7/Scraptown | Core integrity fell below 50% 4132 | -7/Scraptown | Core integrity fell below 20% 4134 | -7/Scraptown | Destroyed by 3I-54W(x) with Makeshift Spear Last Messages --------------- 04102_ 0F-8TO(E) destroyed. 04102_ QP-NQE(j) overheating. 04105_ Penetrated by Bolt. 04105_ Structural Scanner destroyed. 04107_ QP-NQE(j) overheating. 04110_ Penetrated by Bolt. 04110_ Critical hit (Burn: +37). 04111_ QP-NQE(j) overheating. 04114_ QP-NQE(j) heat spikes uncontrollably. 04114_ Lgt. Treads destroyed. 04116_ QP-NQE(j) heat damages core (-9). 04116_ IR-3KL(h) destroyed. 04116_ Adv. Treads destroyed. 04118_ QP-NQE(j) heat spikes uncontrollably. 04119_ QP-NQE(j) overheating. 04120_ Imp. Ion Engine destroyed. 04120_ QP-NQE(j) destroyed. 04125_ Acquired 50 matter. 04129_ Lgt. Treads destroyed. 04134_ Junk Cannon destroyed. Map ----- +----------------------------------------------------+ | ????????######## ??## #############?????????????? | | ????????##" " ??## #""""""""""##?????????????? | | ????????##" "# ### ### " ##?????????????? | | ????????### X###### ## ""##?????????????? | | """"" ""##" !"### ## ""##?????????????? | | #####"####"! !"### ## """"##?????????????? | | """ ""#"! "### ## " ""##?????????????? | | "" ""#"! !"### ## """"##?????????????? | | "& " #" "### ## ""##?????????????? | | "" "## #### ### "##?????????????? | | "# ### # ##?????????????? | | ### ########### #####!%## #############??????????? | | ### ########### ##### ==; #############??????????? | | """ """"""""""" """"" "## ##??????????? | | !j!=["## ##??????????? | | % =%!"## ##??????????? | | = ![* ## ##??????????? | | * ## ##??????????? | | =%[j =% ##??????????? | | """"""""""""""""""""" ## ##??????????? | | """"""""""""""""""""" ## ##??????????? | | # ################"" ## #####???????? | | ###########"" "###############???????? | | X"##??????##"" b "## """"""""##???????? | | " "" ###????####"" j "## " " " "##???????? | | "" X"##########"" g=@"## "##???????? | | " ######### #""[*=xr ## &"##???????? | | "" !=%=[! !%!=%%= % "##???????? | | "" *![j%= [=!![="## * ""##???????? | | " #########!#""!%=*! ## " " " "##???????? | | "" ""##########"" !!!%"## """"""""##???????? | | " "" ###????####" [=!"###############???????? | | X"##??????##"" "###############???????? | | ###########"" ## # ???????????????? | | # ################"" =% "## =" ???????????????? | | """"""""""""""""""""" % "## =!# ???????????????? | | """"""""""""""""""""" %%# ##???????? | | [ "## *[##########???????? | | *= !%! "## """"""""##???????? | | ![%! = !* "## ""##???????? | | =%!=[%! ## ""##???????? | | ![!*= # " ""##???????? | | """"" """""""" " """""" #" " """"""##???????? | | ##### ########### ###### ## """"""""##???????? | | # #### ### ###############???????? | | # ! #### ### ###############???????? | | # # # #### ### ##????????????????????? | | # # # ####### X##### ##????????????????????? | | # =# # ####### ###### #############?????????? | | ############# ## #############?????????? | +----------------------------------------------------+ Best States ------------- Heat Dissipation 25 Energy Generation 12 Energy Capacity 265 Matter Stores 300 Matter Capacity 300 Sight Range 16 Terrain Scan Density 10 Evasion (%) 55 Recoil Reduction 2 Item Schematics ----------------- None Robot Schematics ------------------ None Fabricated ------------ Nothing Repaired ---------- Nothing Studied --------- None Alien Tech Used ----------------- None Achievements -------------- Civilization 2243 Link The Feds Challenges ------------ None Game ------ Seed GuidedExperimentalWartreads Manual? 0 Play Time 00:58:26 Cumulative 72.5 hours Start 2026.03.18 @ 08:26:23 End 2026.03.18 @ 09:35:25 Sessions 2 Manual Loads 0 Difficulty Rogue Special Mode None Game No. 65 Rogue 20 Adventurer 45 Explorer 0 Win Type - Total 3 Types 2/0/0/1/0/0/0/0/0/0 Lore% 44 Gallery% 45 Achievement% 28 Wizard Run 0 Options --------- Layout 0 ASCII 0 Keyboard 1 Movement Numpad Keybinds 0 Fullscreen 1 Font 24/Smallcaps Map View 76x50 Zoom Use 0% Tactical HUD 1 Map Filters NONE Filters NONE Steam 1 RUN: f559694d-297c-4867-895a-3dc2c5ebbd57